lending/lending_fUSD_20250501
["ID","MTS","AMOUNT","RATE_DAILY","PERIOD"]
[359580530,1746141053181,-753.2459905,0.00021666,2]
[359580531,1746141053192,-7097.46681138,0.00021666,2]
[359580532,1746141053212,-1743.34049812,0.00021666,2]
[359580533,1746141053227,-3863.5602623,0.00021666,2]
[359580534,1746141053239,-2136.73628228,0.00021666,2]
[359580535,1746141053249,-358.2,0.00033151,2]
[359580536,1746141053259,-5.10971772,0.00035616,11]
[359580537,1746141053270,-230.95205284,0.00035616,11]
[359580538,1746141053527,-300.54793316,0.00035616,11]
[359580539,1746141053544,-149.45206684,0.00035616,11]
[359580540,1746141053553,-450.0,0.00035616,11]
[359580541,1746141053563,-512.52292206,0.00035616,11]
[359580542,1746141053579,-367.49707794,0.00035616,11]
[359580543,1746141053589,-245.70292206,0.00035616,11]
[359580544,1746141053600,-204.29707794,0.00035616,11]
[359580545,1746141053609,-362.90604878,0.00035616,11]
[359580546,1746141053619,-67.19687329,0.00035616,11]
[359580548,1746141332763,284.74,0.00019313,2]
[359580604,1746141448105,250.0,0.00017,2]
[359580605,1746141449170,300.0,0.00019,2]
[359580610,1746141573689,1259.0,0.0002,10]
[359580612,1746141910592,7209.64506717,0.000154,2]
[359580613,1746141927669,2510.77600852,0.00011,2]
[359580615,1746142117320,2634.90590264,0.000151,2]
[359580621,1746142231490,-1200.0,0.00019899,2]
[359580622,1746142231499,-47.11792128,0.00019899,2]
[359580623,1746142231591,-252.88207872,0.00019899,2]
[359580624,1746142231600,-757.07162873,0.000199,2]
[359580625,1746142231609,-222.75856482,0.000199,2]
[359580626,1746142231618,-118.63206231,0.000199,2]
[359580627,1746142231629,-405.41678176,0.000199,2]
[359580628,1746142231638,-156.93342412,0.000199,2]
[359580629,1746142231647,-397.34653756,0.000199,2]
[359580630,1746142231707,-1519.81907589,0.000199,2]
[359580631,1746142231741,-4313.21647304,0.000199,2]
[359580632,1746142231774,-357.89999996,0.000199,2]
[359580679,1746142232247,-590.00001,0.000199,2]
[359580684,1746142232262,-4018.92116591,0.000199,2]
[359580689,1746142232280,-33803.62025124,0.000199,2]
[359580692,1746142237433,-1586.73634563,0.000199,2]
[359580693,1746142237460,-8995.5153792,0.000199,2]
[359580694,1746142237472,-69665.51377321,0.000199,2]
[359580695,1746142237481,-7994.44701576,0.000199,2]
[359580696,1746142237491,-398.54451874,0.000199,2]
[359580697,1746142237500,-200.0,0.00019907,2]
[359580698,1746142237510,-222.75856478,0.00019913,2]
[359580699,1746142237520,-222.75856478,0.00019927,2]
[359580700,1746142237530,-222.75856478,0.0001994,2]
[359580701,1746142237539,-200.0,0.0001995,2]
[359580702,1746142237549,-250.0,0.0001995,2]
[359580703,1746142237558,-222.75856478,0.00019953,2]
[359580704,1746142237568,-222.75856478,0.00019967,2]
[359580705,1746142237577,-550.46888103,0.00019973,2]
[359580706,1746142237587,-490.69981868,0.00019973,2]
[359580707,1746142237596,-500.0,0.00019973,2]
[359580708,1746142237605,-629.906702,0.00019973,2]
[359580709,1746142237614,-222.75856478,0.0001998,2]
[359580710,1746142237624,-694.36812528,0.0001999,2]
[359580711,1746142237634,-694.36812528,0.0001999,2]
[359580712,1746142237643,-694.36812528,0.0001999,2]
[359580713,1746142237652,-500.0,0.00019999,2]
[359580714,1746142237662,-11028.08551493,0.00019999,2]
[359580715,1746142237671,-342.28362598,0.0002,2]
[359580716,1746142237680,-511960.10023114,0.0002,2]
[359580724,1746142239761,-263.24090694,0.00019899,2]
[359580725,1746142239770,-284.76861882,0.0002,2]
[359580726,1746142239798,-734718.28248643,0.0002,2]
[359580727,1746142239809,-4518735.0789328,0.0002,2]
[359580737,1746142242928,-435.84438426,0.0002,2]
[359580738,1746142242940,-1621.349066,0.0002,2]
[359580739,1746142242965,-3301.09141369,0.0002,2]
[359580740,1746142242977,-1147.08943536,0.0002,2]
[359580741,1746142243314,-2650.86294906,0.0002,2]
[359580742,1746142243326,-1000.0,0.0002,2]
[359580743,1746142245503,-6587.13375897,0.0002,2]
[359580744,1746142245515,-31749.49636802,0.0002,2]
[359580745,1746142245526,-2764.9152825,0.0002,2]
[359580746,1746142245723,-4123.30538085,0.0002,2]
[359580747,1746142245735,-1572.0,0.0002,2]
[359580748,1746142245858,-2835.7004,0.0002,2]
[359580752,1746142389018,548.0,0.0003,90]
[359580753,1746142437577,521.46877761,0.000327,60]
[359580754,1746142872358,-200.0,0.000194,2]
[359580755,1746142877887,-100.0,0.000194,2]
[359580758,1746142916499,-222.96020492,0.00019349,2]
[359580759,1746142921362,-77.41979508,0.00019349,2]
[359580760,1746142939821,319.0,0.00032877,60]
[359580761,1746142960077,889.21,0.00019299,2]
[359580762,1746142960951,-163.022522,0.00019357,2]
[359580763,1746143001523,-165.76340954,0.000194,2]
[359580764,1746143009053,-76.67159036,0.000194,2]
[359580765,1746143025844,-219.81282163,0.00019357,2]
[359580766,1746143032130,-112.62058837,0.00019357,2]
[359580767,1746143037829,-213.92723647,0.00019317,2]
[359580768,1746143046659,-200.0,0.00019317,2]
[359580769,1746143050466,-152.23932308,0.00019317,2]
[359580770,1746143054265,-261.55028289,0.00019317,2]
[359580771,1746143068790,-255.94855328,0.00019317,2]
[359580772,1746143073525,-324.800472,0.00019317,2]
[359580773,1746143078759,-150.0,0.00019317,2]
[359580774,1746143085093,-200.0,0.00019317,2]
[359580775,1746143088674,-278.39752168,0.00019317,2]
[359580776,1746143096643,-435.27714342,0.00019317,2]
[359580777,1746143099845,1140.531073,0.00019221,2]
[359580778,1746143103509,-152.03,0.00019317,2]
[359580779,1746143110880,-160.81946718,0.00019317,2]
[359580780,1746143125533,12575.84,0.00019257,2]
[359580781,1746143253571,250.0,0.00017,2]
[359580782,1746143254689,300.0,0.00019,2]
[359580783,1746143266151,6270.69,0.00019218,2]
[359580784,1746143385191,200.0,0.00019185,2]
[359580785,1746143411839,9134.71,0.00019142,2]
[359580786,1746143431200,1000.0,0.00019109,2]
[359580792,1746143432054,-200.0,0.00019403,2]
[359580793,1746143432064,-250.0,0.00019403,2]
[359580794,1746143432074,-200.0,0.00019421,2]
[359580795,1746143432083,-2425.0,0.00019455,2]
[359580796,1746143432095,-280.53,0.00019455,2]
[359580797,1746143432107,-1666.52,0.00019455,2]
[359580798,1746143432116,-200.0,0.00019471,2]
[359580799,1746143432126,-153.0641577,0.00019497,2]
[359580800,1746143432136,-150.0,0.00019753,2]
[359580801,1746143432146,-217.41,0.00019766,2]
[359580802,1746143432156,-1200.0,0.00019768,2]
[359580803,1746143432165,-2340.07,0.00019769,2]
[359580804,1746143432174,-300.0,0.00019842,2]
[359580805,1746143432184,-300.0,0.00019843,2]
[359580806,1746143432194,-426.51,0.00019845,2]
[359580807,1746143432203,-793.6536254,0.00019879,2]
[359580808,1746143432212,-1044.32081482,0.00019898,2]
[359580809,1746143432222,-193.11231027,0.00019898,2]
[359580810,1746143432231,-253.14026925,0.00019898,2]
[359580811,1746143432241,-3431.19142391,0.00019898,2]
[359580812,1746143432250,-18525.79993035,0.00019899,2]
[359580813,1746143432266,-40193.86350195,0.00019899,2]
[359580814,1746143432275,-9905.182,0.000199,2]
[359580815,1746143432284,-229.02555077,0.000199,2]
[359580816,1746143432294,-6115.75998425,0.000199,2]
[359580817,1746143432303,-6966.55137733,0.000199,2]
[359580818,1746143432313,-190.93591272,0.000199,2]
[359580820,1746143432322,-177.75118209,0.000199,2]
[359580822,1746143432331,-1985.34498578,0.000199,2]
[359580824,1746143432340,-398.54451874,0.000199,2]
[359580826,1746143432351,-568.94,0.00019938,2]
[359580828,1746143432360,-166.64,0.00019938,2]
[359580830,1746143432369,-500.0,0.00019973,2]
[359580832,1746143432378,-550.46888103,0.00019973,2]
[359580835,1746143432388,-500.79231643,0.00019973,2]
[359580838,1746143432397,-500.0,0.00019973,2]
[359580841,1746143432406,-629.906702,0.00019973,2]
[359580844,1746143432415,-500.0,0.00019973,2]
[359580847,1746143432424,-490.69981868,0.00019973,2]
[359580850,1746143432433,-500.0,0.00019973,2]
[359580853,1746143432443,-694.36812528,0.0001999,2]
[359580855,1746143432452,-694.36812528,0.0001999,2]
[359580857,1746143432461,-754.47259851,0.00019999,2]
[359580859,1746143432470,-6155.01936338,0.0002,2]
[359580861,1746143432482,-9406.0,0.0002,2]
[359580863,1746143432493,-289.89542101,0.0002,2]
[359580866,1746143432512,-2264.26600868,0.0002,2]
[359580868,1746143432523,-3289.3190566,0.0002,2]
[359580870,1746143432535,-407.0,0.0002,2]
[359580933,1746143437624,-8695.33159424,0.0002,2]
[359580936,1746143437677,-6655.13983226,0.0002,2]
[359580939,1746143437742,-2824805.45220226,0.0002,2]
[359580941,1746143437754,-10050.43970292,0.0002,2]
[359580942,1746143437765,-468.40396298,0.0002,2]
[359580943,1746143437869,-1942.4,0.0002,2]
[359580944,1746143437880,-5559.25206961,0.0002,2]
[359580945,1746143437896,-822.49017547,0.0002,2]
[359580946,1746143437907,-8916.57994639,0.0002,2]
[359580989,1746143440102,-153.23209665,0.0002,2]
[359580991,1746143440113,-5000.0,0.0002,2]
[359581004,1746143440227,-1303770.3391868,0.0002,2]
[359581023,1746143440444,-566508.46970103,0.0002,2]
[359581025,1746143440454,-250.0,0.0002,2]
[359581027,1746143440463,-250.0,0.0002,2]
[359581028,1746143440473,-250.0,0.0002,2]
[359581030,1746143440483,-250.0,0.0002,2]
[359581032,1746143440492,-250.0,0.0002,2]
[359581034,1746143440500,-250.0,0.0002,2]
[359581036,1746143440509,-250.0,0.0002,2]
[359581038,1746143440518,-250.0,0.0002,2]
[359581040,1746143440528,-250.0,0.0002,2]
[359581042,1746143440538,-250.0,0.0002,2]
[359581044,1746143440547,-358.6,0.0002,2]
[359581046,1746143440556,-23900.0,0.00020093,2]
[359581048,1746143440566,-337.85,0.00020093,2]
[359581050,1746143440576,-6966.55137732,0.0002017,2]
[359581052,1746143440585,-6115.75998416,0.00020178,2]
[359581054,1746143440595,-866.81,0.00020325,2]
[359581056,1746143440604,-166.49,0.00020362,2]
[359581058,1746143440614,-6966.55137732,0.0002044,2]
[359581060,1746143440623,-6115.75998416,0.00020456,2]
[359581062,1746143440633,-15982.50076877,0.000207,2]
[359581064,1746143440643,-6966.55137732,0.0002071,2]
[359581066,1746143440652,-6115.75998416,0.00020733,2]
[359581068,1746143440662,-185.65563741,0.00020794,2]
[359581070,1746143440672,-178.64,0.0002081,2]
[359581071,1746143440681,-501.47327578,0.00020819,2]
[359581073,1746143440691,-633.2360187,0.00020867,2]
[359581074,1746143440701,-6966.55137732,0.0002098,2]
[359581076,1746143440711,-1154.72508518,0.00021,2]
[359581077,1746143440721,-190.58164633,0.00021,2]
[359581079,1746143440730,-350.0,0.00021,2]
[359581080,1746143440739,-6115.75998416,0.00021011,2]
[359581082,1746143440750,-166.49,0.00021034,2]
[359581083,1746143440761,-801.26,0.00021041,2]
[359581085,1746143440770,-455.93,0.00021041,2]
[359581087,1746143440780,-455.93,0.00021041,2]
[359581088,1746143440790,-801.26,0.00021041,2]
[359581090,1746143440801,-801.26,0.00021041,2]
[359581091,1746143440811,-455.93,0.00021041,2]
[359581093,1746143440821,-801.26,0.00021041,2]
[359581095,1746143440831,-455.93,0.00021041,2]
[359581096,1746143440840,-801.26,0.00021041,2]
[359581098,1746143440850,-1499.44,0.00021041,2]
[359581099,1746143440859,-150.0,0.00021078,2]
[359581101,1746143440869,-150.0,0.00021078,2]
[359581103,1746143440879,-150.0,0.00021078,2]
[359581104,1746143440892,-150.0,0.00021078,2]
[359581106,1746143440902,-150.0,0.00021078,2]
[359581107,1746143440911,-150.0,0.00021078,2]
[359581109,1746143440921,-150.0,0.00021078,2]
[359581111,1746143440931,-351.92,0.00021078,2]
[359581112,1746143440941,-351.92,0.00021078,2]
[359581114,1746143440955,-150.0,0.00021078,2]
[359581116,1746143440965,-150.0,0.00021078,2]
[359581117,1746143440976,-351.92,0.00021078,2]
[359581119,1746143440986,-150.0,0.00021078,2]
[359581121,1746143440996,-502.67,0.00021078,2]
[359581136,1746143441245,-150.0,0.00021078,2]
[359581137,1746143441256,-150.0,0.00021078,2]
[359581138,1746143441266,-150.0,0.00021078,2]
[359581140,1746143441275,-162.16,0.00021178,2]
[359581142,1746143441285,-351.92,0.00021178,2]
[359581144,1746143441294,-150.0,0.00021178,2]
[359581146,1746143441303,-451.39,0.00021178,2]
[359581148,1746143441313,-162.16,0.00021178,2]
[359581150,1746143441322,-150.0,0.00021178,2]
[359581152,1746143441332,-351.92,0.00021178,2]
[359581154,1746143441341,-162.16,0.00021178,2]
[359581155,1746143441352,-351.92,0.00021178,2]
[359581157,1746143441362,-150.0,0.00021178,2]
[359581159,1746143441371,-451.39,0.00021178,2]
[359581161,1746143441381,-451.39,0.00021178,2]
[359581163,1746143441391,-162.16,0.00021178,2]
[359581165,1746143441400,-150.0,0.00021178,2]
[359581167,1746143441410,-351.92,0.00021178,2]
[359581169,1746143441420,-451.39,0.00021178,2]
[359581171,1746143441429,-150.0,0.00021178,2]
[359581173,1746143441438,-351.92,0.00021178,2]
[359581175,1746143441449,-162.16,0.00021178,2]
[359581177,1746143441459,-239.2,0.00021178,2]
[359581179,1746143441469,-451.39,0.00021178,2]
[359581181,1746143441479,-150.0,0.00021178,2]
[359581183,1746143441488,-351.92,0.00021178,2]
[359581185,1746143441498,-911.83,0.00021178,2]
[359581187,1746143441508,-351.92,0.00021178,2]
[359581189,1746143441518,-150.0,0.00021178,2]
[359581191,1746143441527,-351.92,0.00021178,2]
[359581193,1746143441537,-150.0,0.00021178,2]
[359581195,1746143441547,-351.92,0.00021178,2]
[359581197,1746143441556,-150.0,0.00021178,2]
[359581199,1746143441566,-150.0,0.00021178,2]
[359581200,1746143441576,-351.92,0.00021178,2]
[359581201,1746143441585,-150.0,0.00021178,2]
[359581202,1746143441595,-351.92,0.00021178,2]
[359581203,1746143441604,-150.0,0.00021178,2]
[359581204,1746143441614,-351.92,0.00021178,2]
[359581205,1746143441634,-6966.55137732,0.00021249,2]
[359581206,1746143441645,-6115.75998416,0.00021289,2]
[359581207,1746143441656,-389.42,0.00021302,2]
[359581208,1746143441667,-225.0,0.00021308,2]
[359581209,1746143441678,-200.0,0.00021325,2]
[359581210,1746143441687,-250.0,0.00021325,2]
[359581211,1746143441698,-200.0,0.00021325,2]
[359581212,1746143441708,-250.0,0.00021325,2]
[359581213,1746143441719,-597.73,0.00021415,2]
[359581214,1746143441730,-1000.0,0.00021497,2]
[359581215,1746143441742,-6966.55137732,0.00021519,2]
[359581216,1746143441753,-6115.75998416,0.00021567,2]
[359581217,1746143441765,-1083.51,0.00021593,2]
[359581218,1746143441777,-272.0,0.00021609,2]
[359581219,1746143441788,-420.0,0.0002161,2]
[359581220,1746143441798,-1680.0,0.00021634,2]
[359581221,1746143441808,-1403.65,0.00021649,2]
[359581222,1746143441818,-200.0,0.00021689,2]
[359581223,1746143441828,-7314.86831856,0.000217,2]
[359581224,1746143441838,-166.49,0.00021706,2]
[359581225,1746143441850,-6966.55137732,0.00021789,2]
[359581226,1746143441861,-6115.75998416,0.00021844,2]
[359581227,1746143441872,-150.0,0.000219,2]
[359581228,1746143441883,-150.0,0.000219,2]
[359581229,1746143441901,-150.0,0.000219,2]
[359581230,1746143441911,-150.0,0.000219,2]
[359581231,1746143441921,-150.0,0.000219,2]
[359581232,1746143441931,-318.85,0.00021917,2]
[359581233,1746143441941,-247.77380099,0.00022,2]
[359581234,1746143441950,-500.0,0.00022,2]
[359581235,1746143441959,-180.23717968,0.00022,2]
[359581236,1746143441969,-6966.55137732,0.00022059,2]
[359581237,1746143441979,-232.19998928,0.0002211,2]
[359581238,1746143441988,-6115.75998416,0.00022122,2]
[359581239,1746143441997,-377.0,0.00022219,2]
[359581240,1746143442006,-6966.55137732,0.00022329,2]
[359581241,1746143442016,-166.49,0.00022378,2]
[359581242,1746143442025,-6115.75998416,0.000224,2]
[359581243,1746143442034,-1097.8656,0.000225,15]
[359581244,1746143442043,-5523.7254445,0.000225,2]
[359581245,1746143442053,-866.81,0.00022589,2]
[359581246,1746143442062,-190.93591266,0.00022594,2]
[359581247,1746143442071,-225.0,0.00022678,2]
[359581248,1746143442081,-150.0,0.00022811,2]
[359581249,1746143442090,-229.02555073,0.00022822,2]
[359581250,1746143442100,-400.0,0.00023,2]
[359581251,1746143442110,-166.49,0.0002305,2]
[359581252,1746143442120,-19106.16773526,0.000232,2]
[359581253,1746143442129,-318.85,0.00023287,2]
[359581254,1746143442139,-587.0,0.00023535,2]
[359581255,1746143442149,-1369.0,0.00023676,2]
[359581256,1746143442158,-166.49,0.00023723,2]
[359581257,1746143442167,-368.95,0.00023836,2]
[359581258,1746143442177,-1000.0,0.00023886,2]
[359581259,1746143442186,-10029.81877166,0.00024,2]
[359581260,1746143442196,-213.77688738,0.00024467,2]
[359581261,1746143442205,-318.85,0.00024657,2]
[359581262,1746143442215,-500.0,0.00024773,2]
[359581263,1746143442224,-160.45172935,0.00024773,2]
[359581264,1746143442234,-500.0,0.00024773,2]
[359581265,1746143442244,-500.60294482,0.00024773,2]
[359581266,1746143442253,-500.0,0.00024773,2]
[359581267,1746143442263,-500.0,0.00024773,2]
[359581268,1746143442273,-505.45280058,0.00024773,2]
[359581269,1746143442283,-500.0,0.00024773,2]
[359581270,1746143442293,-211.24478406,0.00024773,2]
[359581271,1746143442303,-500.0,0.00024773,2]
[359581272,1746143442313,-500.0,0.00024773,2]
[359581273,1746143442322,-500.0,0.00024773,2]
[359581274,1746143442334,-187.20036533,0.00024773,2]
[359581275,1746143442343,-315.56371199,0.00024773,2]
[359581276,1746143442356,-500.0,0.00024773,2]
[359581277,1746143442366,-500.0,0.00024773,2]
[359581278,1746143442376,-500.0,0.00024773,2]
[359581279,1746143442386,-500.0,0.00024773,2]
[359581280,1746143442396,-153.86367941,0.00024773,2]
[359581281,1746143442407,-500.0,0.00024773,2]
[359581282,1746143442417,-344.27675877,0.00024773,2]
[359581283,1746143442426,-270.89897558,0.00024773,2]
[359581284,1746143442436,-500.0,0.00024773,2]
[359581285,1746143442446,-330.87895996,0.00024773,2]
[359581286,1746143442456,-233.31198073,0.00024799,2]
[359581287,1746143442466,-574107.100929,0.000248,2]
[359581288,1746143442476,-866.81,0.00024853,2]
[359581289,1746143442486,-500.0,0.00024873,2]
[359581290,1746143442495,-163.01328706,0.00024873,2]
[359581292,1746143442505,-373.44777472,0.00024873,2]
[359581293,1746143442515,-22850.3884995,0.000249,2]
[359581294,1746143442524,-382.97909322,0.00025,2]
[359581295,1746143442533,-1028.11380351,0.00025,2]
[359581296,1746143442543,-8170.02163448,0.00025,2]
[359581297,1746143442552,-161.57638157,0.00025,2]
[359581298,1746143442562,-450.0,0.00025,2]
[359581299,1746143442572,-3263.75796655,0.000251,2]
[359581300,1746143442583,-501.0,0.00025105,2]
[359581301,1746143442593,-190.93591266,0.00025288,2]
[359581302,1746143442603,-250.0,0.00025321,2]
[359581303,1746143442613,-823.0,0.00025631,2]
[359581304,1746143442623,-229.02555073,0.00025745,2]
[359581305,1746143442633,-318.85,0.00026027,2]
[359581306,1746143442643,-1000.0,0.00026274,2]
[359581307,1746143442653,-481.135,0.00026422,2]
[359581308,1746143442663,-797.0,0.00026422,2]
[359581309,1746143442672,-1138.0,0.00026422,2]
[359581310,1746143442682,-7029.48774566,0.000265,2]
[359581311,1746143442692,-6270.69,0.00026905,2]
[359581313,1746143442702,-500.0,0.00027,2]
[359581315,1746143442712,-500.0,0.00027085,2]
[359581317,1746143442722,-866.81,0.00027117,2]
[359581319,1746143442732,-342.18308872,0.00027397,2]
[359581321,1746143442742,-318.85,0.00027397,2]
[359581322,1746143442752,-897.2,0.00027397,2]
[359581323,1746143442762,-1000.0,0.00027397,2]
[359581324,1746143442771,-1000.0,0.00027756,2]
[359581325,1746143442781,-1129.0,0.00027914,2]
[359581326,1746143442791,-190.93591266,0.00027982,2]
[359581327,1746143442801,-1000.0,0.00028663,2]
[359581328,1746143442811,-229.02555073,0.00028667,2]
[359581329,1746143442821,-318.85,0.00028767,2]
[359581330,1746143442831,-897.2,0.00028767,2]
[359581331,1746143442841,-155.15062595,0.00029,2]
[359581332,1746143442851,-550.0,0.00029,2]
[359581333,1746143442861,-207.4,0.00029231,2]
[359581334,1746143442871,-151.0,0.00029231,2]
[359581335,1746143442881,-866.81,0.0002938,2]
[359581337,1746143442894,-797.0,0.00029422,2]
[359581339,1746143442904,-557.405,0.00029422,2]
[359581341,1746143442913,-1985.34498577,0.00029489,2]
[359581343,1746143442923,-398.54451873,0.00029489,2]
[359581345,1746143442932,-1158.44044072,0.0003,10]
[359581347,1746143442942,-1477.29,0.0003,2]
[359581349,1746143442952,-1246.67556792,0.0003,2]
[359581351,1746143442962,-20000.0,0.0003,7]
[359581353,1746143442972,-159.0,0.0003,2]
[359581355,1746143442982,-10497.66,0.0003011,2]
[359581357,1746143442992,-318.85,0.00030136,2]
[359581358,1746143443001,-610.0,0.00030137,2]
[359581360,1746143443011,-897.2,0.00030137,2]
[359581362,1746143443020,-150.0,0.00030137,2]
[359581363,1746143443030,-500.0,0.00030137,2]
[359581364,1746143443039,-233.75789708,0.00030137,2]
[359581365,1746143443049,-500.0,0.00030252,5]
[359581366,1746143443058,-1000.0,0.00030252,5]
[359581367,1746143443068,-500.0,0.00030252,5]
[359581368,1746143443078,-302.17365237,0.00030252,5]
[359581369,1746143443087,-500.48107556,0.00030252,5]
[359581370,1746143443097,-545.87496632,0.00030252,5]
[359581371,1746143443106,-537.35794795,0.00030252,5]
[359581372,1746143443115,-1000.0,0.00030352,5]
[359581373,1746143443125,-215.0738,0.000306,2]
[359581374,1746143443135,-188.26,0.00030618,2]
[359581375,1746143443144,-190.93591266,0.00030676,15]
[359581376,1746143443154,-150.0,0.0003093,2]
[359581377,1746143443163,-600.0,0.00031,2]
[359581378,1746143443173,-318.85,0.00031506,2]
[359581379,1746143443182,-897.2,0.00031507,2]
[359581380,1746143443191,-229.02555073,0.00031589,2]
[359581381,1746143443201,-866.81,0.00031644,2]
[359581382,1746143443211,-150.0,0.00031723,2]
[359581383,1746143443221,-205.29,0.00031773,14]
[359581384,1746143443231,-205.29,0.00031773,7]
[359581385,1746143443240,-223.0315306,0.00031969,2]
[359581386,1746143443250,-166.53,0.00032367,2]
[359581387,1746143443260,-797.0,0.00032422,2]
[359581388,1746143443270,-150.0,0.00032516,2]
[359581389,1746143443279,-500.0,0.00032564,5]
[359581390,1746143443288,-374.0,0.000326,2]
[359581391,1746143443298,-764.0,0.000326,2]
[359581392,1746143443307,-422.0,0.000326,2]
[359581393,1746143443317,-1000.0,0.00032876,2]
[359581394,1746143443327,-1000.0,0.00032876,2]
[359581395,1746143443337,-1000.0,0.00032876,2]
[359581396,1746143443346,-1000.0,0.00032876,2]
[359581397,1746143443360,-1000.0,0.00032876,2]
[359581398,1746143443369,-1000.0,0.00032876,2]
[359581399,1746143443379,-318.85,0.00032876,2]
[359581400,1746143443389,-161.00078248,0.00032877,3]
[359581401,1746143443398,-897.2,0.00032877,2]
[359581404,1746143443408,-176.59,0.00032877,30]
[359581406,1746143443417,-150.0,0.00032877,2]
[359581408,1746143443427,-23819.6934215,0.00033,2]
[359581410,1746143443436,-650.0,0.00033,2]
[359581412,1746143443447,-1000.0,0.00033165,2]
[359581413,1746143443456,-169.146,0.00033309,35]
[359581415,1746143443466,-1874.17,0.00033309,35]
[359581416,1746143443477,-150.0,0.00033309,2]
[359581417,1746143443487,-231.28369723,0.00033338,2]
[359581418,1746143443497,-190.93591266,0.0003337,15]
[359581419,1746143443508,-500.0,0.000337,60]
[359581420,1746143443518,-866.81,0.00033908,2]
[359581421,1746143443530,-1974.18985317,0.00034,2]
[359581422,1746143443540,-154.63,0.00034,2]
[359581423,1746143443550,-150.0,0.00034102,2]
[359581424,1746143443560,-200.0,0.0003424,2]
[359581425,1746143443570,-150.0,0.00034242,2]
[359581426,1746143443581,-318.85,0.00034246,2]
[359581427,1746143443592,-150.0,0.00034336,2]
[359581428,1746143443602,-152.0,0.00034414,3]
[359581429,1746143443613,-167.52606627,0.00034438,30]
[359581430,1746143443623,-229.02555073,0.00034512,2]
[359581431,1746143443633,-150.0,0.00034548,10]
[359581432,1746143443643,-150.0,0.00034573,2]
[359581433,1746143443654,-687.2532006,0.00034616,4]
[359581434,1746143443665,-239.84119403,0.00034707,2]
[359581435,1746143443675,-167.52606627,0.0003474,30]
[359581436,1746143443685,-1273.0,0.000348,7]
[359581437,1746143443695,-150.0,0.00034858,2]
[359581438,1746143443705,-150.0,0.00034895,2]
[359581439,1746143443714,-150.0,0.00034936,2]
[359581440,1746143443725,-300.0,0.00034999,10]
[359581441,1746143443735,-500.0,0.00034999,10]
[359581442,1746143443745,-1197.61856956,0.00035,2]
[359581443,1746143443754,-74304.40037849,0.00035,2]
[359581444,1746143443764,-888.0,0.00035,5]
[359581445,1746143443773,-700.0,0.00035,2]
[359581446,1746143443783,-368.95,0.00035068,2]
[359581447,1746143443793,-167.52606627,0.00035068,30]
[359581448,1746143443802,-161.31,0.00035068,2]
[359581449,1746143443812,-150.0,0.00035068,2]
[359581450,1746143443821,-2159.61,0.000351,2]
[359581451,1746143443831,-150.0,0.00035156,2]
[359581452,1746143443842,-1269.2,0.00035167,5]
[359581453,1746143443852,-1474.19085017,0.00035167,5]
[359581454,1746143443864,-694.36812528,0.0003519,2]
[359581455,1746143443875,-154.63,0.0003519,2]
[359581456,1746143443885,-342.28362598,0.00035199,2]
[359581457,1746143443899,-54122.18353584,0.000352,10]
[359581458,1746143443908,-2159.61,0.000352,2]
[359581459,1746143443918,-150.0,0.00035246,2]
[359581460,1746143443927,-150.0,0.00035246,2]